[Event "Early Titled Tuesday Blitz | February 8 2022"]
[White "Khachiyan, Melikset"]
[Black "Rustemov, Alexander"]
[WhiteFideId "13300512"]
[BlackFideId "4119002"]
[WhiteElo "2484"]
[BlackElo "2828"]
[Result "0-1"]
[Round "06"]
[TimeControl "180+1"]
[Date "2022.02.08"]
[WhiteClock "0:00:06"]
[BlackClock "0:00:24"]

1. e4 {[%clk 0:03:00]}  e6 {[%clk 0:02:59]} 2. d4 {[%clk 0:03:00]}  d5 {[%clk 0:03:00]} 3. Nc3 {[%clk 0:03:01]}  dxe4 {[%clk 0:03:01]} 4. Nxe4 {[%clk 0:03:01]}  Bd7 {[%clk 0:03:02]} 5. Nf3 {[%clk 0:02:58]}  Bc6 {[%clk 0:03:02]} 6. Ned2 {[%clk 0:02:58]}  Nd7 {[%clk 0:03:03]} 7. Bd3 {[%clk 0:02:57]}  Ngf6 {[%clk 0:03:03]} 8. O-O {[%clk 0:02:58]}  Be7 {[%clk 0:03:04]} 9. b3 {[%clk 0:02:58]}  O-O {[%clk 0:03:03]} 10. Bb2 {[%clk 0:02:58]}  b6 {[%clk 0:03:04]} 11. c4 {[%clk 0:02:54]}  Bb7 {[%clk 0:03:04]} 12. Qe2 {[%clk 0:02:54]}  c5 {[%clk 0:03:04]} 13. Rad1 {[%clk 0:02:52]}  Re8 {[%clk 0:03:04]} 14. Rfe1 {[%clk 0:02:41]}  Qc7 {[%clk 0:03:02]} 15. h3 {[%clk 0:02:41]}  Rad8 {[%clk 0:03:01]} 16. a3 {[%clk 0:02:31]}  h6 {[%clk 0:02:53]} 17. Bc2 {[%clk 0:02:31]}  a5 {[%clk 0:02:41]} 18. dxc5 {[%clk 0:02:12]}  Bxc5 {[%clk 0:02:37]} 19. Nd4 {[%clk 0:02:07]}  Qd6 {[%clk 0:02:17]} 20. N2f3 {[%clk 0:01:52]}  Qf4 {[%clk 0:02:12]} 21. Nb5 {[%clk 0:01:07]}  Bxf3 {[%clk 0:02:06]} 22. Qxf3 {[%clk 0:01:08]}  Qxf3 {[%clk 0:02:06]} 23. gxf3 {[%clk 0:01:09]}  Nh5 {[%clk 0:02:00]} 24. Be4 {[%clk 0:00:55]}  Ndf6 {[%clk 0:01:57]} 25. Bc6 {[%clk 0:00:53]}  Rf8 {[%clk 0:01:56]} 26. Be5 {[%clk 0:00:50]}  g5 {[%clk 0:01:28]} 27. Bc7 {[%clk 0:00:44]}  Rxd1 {[%clk 0:01:23]} 28. Rxd1 {[%clk 0:00:45]}  Nf4 {[%clk 0:01:21]} 29. b4 {[%clk 0:00:30]}  axb4 {[%clk 0:01:20]} 30. axb4 {[%clk 0:00:31]}  Bxb4 {[%clk 0:01:14]} 31. Bxb6 {[%clk 0:00:31]}  Rc8 {[%clk 0:01:14]} 32. Na7 {[%clk 0:00:28]}  Rb8 {[%clk 0:01:05]} 33. Bc7 {[%clk 0:00:24]}  Rf8 {[%clk 0:01:03]} 34. h4 {[%clk 0:00:21]}  Bc5 {[%clk 0:00:59]} 35. hxg5 {[%clk 0:00:21]}  hxg5 {[%clk 0:00:59]} 36. Nb5 {[%clk 0:00:21]}  Rc8 {[%clk 0:00:54]} 37. Rd8+ {[%clk 0:00:20]}  Rxd8 {[%clk 0:00:53]} 38. Bxd8 {[%clk 0:00:21]}  Kg7 {[%clk 0:00:51]} 39. Kf1 {[%clk 0:00:11]}  Nd3 {[%clk 0:00:51]} 40. Bc7 {[%clk 0:00:08]}  Nxf2 {[%clk 0:00:48]} 41. Bd6 {[%clk 0:00:07]}  Bxd6 {[%clk 0:00:38]} 42. Nxd6 {[%clk 0:00:08]}  Nd3 {[%clk 0:00:38]} 43. Ne4 {[%clk 0:00:08]}  Nxe4 {[%clk 0:00:36]} 44. Bxe4 {[%clk 0:00:09]}  Nc5 {[%clk 0:00:37]} 45. Ba8 {[%clk 0:00:09]}  Kf6 {[%clk 0:00:37]} 46. Ke2 {[%clk 0:00:09]}  Ke5 {[%clk 0:00:37]} 47. Ke3 {[%clk 0:00:10]}  f5 {[%clk 0:00:37]} 48. Bc6 {[%clk 0:00:09]}  f4+ {[%clk 0:00:37]} 49. Kf2 {[%clk 0:00:09]}  Kd4 {[%clk 0:00:38]} 50. Kg2 {[%clk 0:00:08]}  Nd3 {[%clk 0:00:24]} 51. Kh3 {[%clk 0:00:09]}  Ne5 {[%clk 0:00:24]} 52. Ba8 {[%clk 0:00:06]}  Kxc4 {[%clk 0:00:24]} 0-1


[Site "https://www.chess.com"]

[Event "Early Titled Tuesday Blitz | February 8 2022"]
[White "Khamdamova, Afruza"]
[Black "Vivas Zamora, Fabian Ernesto"]
[WhiteFideId "14210444"]
[BlackFideId "3902480"]
[WhiteElo "1660"]
[BlackElo "1966"]
[Result "0-1"]
[Round "06"]
[TimeControl "180+1"]
[Date "2022.02.08"]
[WhiteClock "0:00:01"]
[BlackClock "0:00:09"]

1. e4 {[%clk 0:03:00]}  e5 {[%clk 0:02:55]} 2. Nf3 {[%clk 0:03:00]}  Nc6 {[%clk 0:02:53]} 3. Bb5 {[%clk 0:03:00]}  Nf6 {[%clk 0:02:51]} 4. O-O {[%clk 0:02:59]}  Nxe4 {[%clk 0:02:49]} 5. d4 {[%clk 0:02:57]}  exd4 {[%clk 0:02:46]} 6. Re1 {[%clk 0:02:55]}  d5 {[%clk 0:02:39]} 7. Nxd4 {[%clk 0:02:53]}  Bd6 {[%clk 0:02:37]} 8. Nxc6 {[%clk 0:02:51]}  Bxh2+ {[%clk 0:02:30]} 9. Kf1 {[%clk 0:02:09]}  Qh4 {[%clk 0:02:08]} 10. Nd4+ {[%clk 0:01:36]}  c6 {[%clk 0:02:03]} 11. Rxe4+ {[%clk 0:01:12]}  dxe4 {[%clk 0:01:52]} 12. Bc4 {[%clk 0:00:55]}  Be5 {[%clk 0:01:33]} 13. Ne2 {[%clk 0:00:40]}  Qh1+ {[%clk 0:01:03]} 14. Ng1 {[%clk 0:00:40]}  Bh2 {[%clk 0:01:03]} 15. Qh5 {[%clk 0:00:14]}  Qxg1+ {[%clk 0:01:02]} 16. Ke2 {[%clk 0:00:14]}  g6 {[%clk 0:00:47]} 17. Qg5 {[%clk 0:00:14]}  h6 {[%clk 0:00:37]} 18. Qf6 {[%clk 0:00:11]}  Bg4+ {[%clk 0:00:31]} 19. Kd2 {[%clk 0:00:10]}  Rf8 {[%clk 0:00:15]} 20. Na3 {[%clk 0:00:08]}  Rd8+ {[%clk 0:00:10]} 21. Kc3 {[%clk 0:00:07]}  Rd6 {[%clk 0:00:10]} 22. Qg7 {[%clk 0:00:04]}  Qe1+ {[%clk 0:00:10]} 23. Kb3 {[%clk 0:00:04]}  Qxf2 {[%clk 0:00:10]} 24. Bxh6 {[%clk 0:00:04]}  Qb6+ {[%clk 0:00:10]} 25. Nb5 {[%clk 0:00:04]}  cxb5 {[%clk 0:00:08]} 26. Qxf8+ {[%clk 0:00:04]}  Kd7 {[%clk 0:00:08]} 27. Qxf7+ {[%clk 0:00:04]}  Kc6 {[%clk 0:00:08]} 28. Qe8+ {[%clk 0:00:03]}  Kc7 {[%clk 0:00:08]} 29. Qe7+ {[%clk 0:00:03]}  Bd7 {[%clk 0:00:08]} 30. Be2 {[%clk 0:00:01]}  Re6 {[%clk 0:00:08]} 31. Qf7 {[%clk 0:00:01]}  Qd6 {[%clk 0:00:07]} 32. Bg4 {[%clk 0:00:01]}  Qd5+ {[%clk 0:00:08]} 33. Ka3 {[%clk 0:00:01]}  Ra6+ {[%clk 0:00:08]} 34. Kb4 {[%clk 0:00:01]}  Ra4+ {[%clk 0:00:08]} 35. Kc3 {[%clk 0:00:01]}  Qd4+ {[%clk 0:00:09]} 0-1


[Site "https://www.chess.com"]

[Event "Early Titled Tuesday Blitz | February 8 2022"]
[White "Khripachenko, Alexander"]
[Black "Vakhlamov, Igor L."]
[WhiteFideId "54184975"]
[BlackFideId "24126748"]
[WhiteElo "2177"]
[BlackElo "2401"]
[Result "0-1"]
[Round "06"]
[TimeControl "180+1"]
[Date "2022.02.08"]
[WhiteClock "0:00:11"]
[BlackClock "0:00:22"]

1. d4 {[%clk 0:03:00]}  d5 {[%clk 0:02:59]} 2. c4 {[%clk 0:03:00]}  c6 {[%clk 0:02:59]} 3. Nf3 {[%clk 0:03:01]}  Nf6 {[%clk 0:02:59]} 4. Nc3 {[%clk 0:03:01]}  dxc4 {[%clk 0:02:59]} 5. a4 {[%clk 0:03:00]}  a5 {[%clk 0:02:59]} 6. e4 {[%clk 0:02:51]}  Bg4 {[%clk 0:02:57]} 7. Be3 {[%clk 0:02:46]}  Nbd7 {[%clk 0:02:50]} 8. Bxc4 {[%clk 0:02:45]}  e6 {[%clk 0:02:50]} 9. h3 {[%clk 0:02:43]}  Bh5 {[%clk 0:02:49]} 10. O-O {[%clk 0:02:42]}  Be7 {[%clk 0:02:48]} 11. Be2 {[%clk 0:02:42]}  O-O {[%clk 0:02:47]} 12. Rc1 {[%clk 0:02:42]}  Re8 {[%clk 0:02:45]} 13. Qb3 {[%clk 0:02:40]}  Qb8 {[%clk 0:02:38]} 14. Rfd1 {[%clk 0:02:39]}  Bb4 {[%clk 0:02:36]} 15. Qc2 {[%clk 0:02:31]}  h6 {[%clk 0:02:27]} 16. e5 {[%clk 0:02:11]}  Bg6 {[%clk 0:02:25]} 17. Bd3 {[%clk 0:02:09]}  Bxd3 {[%clk 0:02:22]} 18. Qxd3 {[%clk 0:02:10]}  Nd5 {[%clk 0:02:09]} 19. Bd2 {[%clk 0:02:10]}  N7b6 {[%clk 0:02:05]} 20. b3 {[%clk 0:02:04]}  Nxc3 {[%clk 0:02:01]} 21. Bxc3 {[%clk 0:02:05]}  Nd5 {[%clk 0:02:00]} 22. Bxb4 {[%clk 0:02:05]}  Nxb4 {[%clk 0:01:59]} 23. Qc4 {[%clk 0:02:01]}  Rd8 {[%clk 0:01:59]} 24. Nd2 {[%clk 0:02:02]}  Rd5 {[%clk 0:01:47]} 25. Ne4 {[%clk 0:02:02]}  Qa7 {[%clk 0:01:46]} 26. Nc3 {[%clk 0:02:01]}  Rd7 {[%clk 0:01:45]} 27. Ne4 {[%clk 0:02:02]}  Rad8 {[%clk 0:01:42]} 28. Nd6 {[%clk 0:01:59]}  Nd5 {[%clk 0:01:42]} 29. g3 {[%clk 0:01:57]}  Ne7 {[%clk 0:01:39]} 30. g4 {[%clk 0:01:52]}  Nc8 {[%clk 0:01:39]} 31. Nxc8 {[%clk 0:01:47]}  Rxc8 {[%clk 0:01:40]} 32. Qc5 {[%clk 0:01:48]}  Qa6 {[%clk 0:01:38]} 33. Rd2 {[%clk 0:01:16]}  Rcd8 {[%clk 0:01:36]} 34. Kg2 {[%clk 0:01:16]}  Rd5 {[%clk 0:01:34]} 35. Qc4 {[%clk 0:01:16]}  Qxc4 {[%clk 0:01:31]} 36. Rxc4 {[%clk 0:01:13]}  c5 {[%clk 0:01:31]} 37. f4 {[%clk 0:01:11]}  Rxd4 {[%clk 0:01:16]} 38. Rcxd4 {[%clk 0:01:08]}  Rxd4 {[%clk 0:01:16]} 39. Rxd4 {[%clk 0:01:09]}  cxd4 {[%clk 0:01:17]} 40. Kf3 {[%clk 0:01:09]}  f5 {[%clk 0:01:17]} 41. gxf5 {[%clk 0:00:22]}  exf5 {[%clk 0:01:16]} 42. h4 {[%clk 0:00:20]}  Kf7 {[%clk 0:01:01]} 43. Ke2 {[%clk 0:00:20]}  Ke6 {[%clk 0:00:28]} 44. h5 {[%clk 0:00:20]}  g6 {[%clk 0:00:24]} 45. hxg6 {[%clk 0:00:21]}  h5 {[%clk 0:00:24]} 46. Kf2 {[%clk 0:00:11]}  h4 {[%clk 0:00:23]} 47. Kf3 {[%clk 0:00:11]}  h3 {[%clk 0:00:22]} 0-1


[Site "https://www.chess.com"]

[Event "Early Titled Tuesday Blitz | February 8 2022"]
[White "Komiagina, Maria"]
[Black "Alghamdi, Ahmed M"]
[WhiteFideId "4153987"]
[BlackFideId "21500150"]
[WhiteElo "1945"]
[BlackElo "2110"]
[Result "1-0"]
[Round "06"]
[TimeControl "180+1"]
[Date "2022.02.08"]
[WhiteClock "0:00:22"]
[BlackClock "0:00:01"]

1. e4 {[%clk 0:03:00]}  e5 {[%clk 0:02:58]} 2. Nf3 {[%clk 0:03:00]}  Nc6 {[%clk 0:02:50]} 3. Bb5 {[%clk 0:02:59]}  g6 {[%clk 0:02:50]} 4. Nc3 {[%clk 0:02:55]}  Bg7 {[%clk 0:02:48]} 5. d3 {[%clk 0:02:54]}  Nge7 {[%clk 0:02:44]} 6. h4 {[%clk 0:02:53]}  h6 {[%clk 0:02:41]} 7. Be3 {[%clk 0:02:50]}  d6 {[%clk 0:02:38]} 8. Qd2 {[%clk 0:02:49]}  a6 {[%clk 0:02:18]} 9. Ba4 {[%clk 0:02:48]}  Be6 {[%clk 0:02:15]} 10. d4 {[%clk 0:02:43]}  exd4 {[%clk 0:02:09]} 11. Nxd4 {[%clk 0:02:43]}  Bd7 {[%clk 0:02:08]} 12. Nxc6 {[%clk 0:02:37]}  bxc6 {[%clk 0:02:01]} 13. h5 {[%clk 0:02:30]}  g5 {[%clk 0:02:00]} 14. Bd4 {[%clk 0:02:28]}  O-O {[%clk 0:01:44]} 15. Bxg7 {[%clk 0:02:25]}  Kxg7 {[%clk 0:01:43]} 16. f4 {[%clk 0:02:20]}  f6 {[%clk 0:01:32]} 17. O-O-O {[%clk 0:02:15]}  Rb8 {[%clk 0:01:30]} 18. e5 {[%clk 0:02:09]}  Nf5 {[%clk 0:00:56]} 19. exd6 {[%clk 0:02:01]}  Nxd6 {[%clk 0:00:55]} 20. fxg5 {[%clk 0:01:57]}  fxg5 {[%clk 0:00:52]} 21. Rhf1 {[%clk 0:01:54]}  Qe7 {[%clk 0:00:41]} 22. Qd4+ {[%clk 0:01:46]}  Kh7 {[%clk 0:00:38]} 23. Bb3 {[%clk 0:01:31]}  Rxf1 {[%clk 0:00:30]} 24. Rxf1 {[%clk 0:01:30]}  Rf8 {[%clk 0:00:27]} 25. Qd3+ {[%clk 0:01:21]}  Bf5 {[%clk 0:00:20]} 26. Qxa6 {[%clk 0:01:06]}  Qe3+ {[%clk 0:00:17]} 27. Kb1 {[%clk 0:01:04]}  Qb6 {[%clk 0:00:06]} 28. Qe2 {[%clk 0:01:02]}  Qd4 {[%clk 0:00:05]} 29. Rd1 {[%clk 0:00:58]}  Qg7 {[%clk 0:00:05]} 30. g4 {[%clk 0:00:56]}  Bd7 {[%clk 0:00:02]} 31. Qd3+ {[%clk 0:00:52]}  Kh8 {[%clk 0:00:02]} 32. Qg3 {[%clk 0:00:44]}  Qf6 {[%clk 0:00:02]} 33. a3 {[%clk 0:00:43]}  Qf4 {[%clk 0:00:02]} 34. Qd3 {[%clk 0:00:33]}  Qxg4 {[%clk 0:00:02]} 35. Re1 {[%clk 0:00:32]}  Qf5 {[%clk 0:00:02]} 36. Qd4+ {[%clk 0:00:30]}  Qf6 {[%clk 0:00:01]} 37. Qc5 {[%clk 0:00:29]}  g4 {[%clk 0:00:01]} 38. Ne4 {[%clk 0:00:22]} 1-0


[Site "https://www.chess.com"]

[Event "Early Titled Tuesday Blitz | February 8 2022"]
[White "Kosakowski, Jakub"]
[Black "Shimanov, Aleksandr"]
[WhiteFideId "1185080"]
[BlackFideId "4198603"]
[WhiteElo "2476"]
[BlackElo "2636"]
[Result "1/2-1/2"]
[Round "06"]
[TimeControl "180+1"]
[Date "2022.02.08"]
[WhiteClock "0:00:05"]
[BlackClock "0:00:04"]

1. d4 {[%clk 0:03:00]}  d5 {[%clk 0:02:58]} 2. c4 {[%clk 0:03:00]}  c6 {[%clk 0:02:59]} 3. Nf3 {[%clk 0:03:00]}  Nf6 {[%clk 0:02:59]} 4. g3 {[%clk 0:03:00]}  Bf5 {[%clk 0:02:53]} 5. Bg2 {[%clk 0:02:59]}  e6 {[%clk 0:02:48]} 6. Qb3 {[%clk 0:02:56]}  Qb6 {[%clk 0:02:45]} 7. Nc3 {[%clk 0:02:56]}  Nbd7 {[%clk 0:02:44]} 8. c5 {[%clk 0:02:49]}  Qxb3 {[%clk 0:02:43]} 9. axb3 {[%clk 0:02:49]}  a6 {[%clk 0:02:43]} 10. Nh4 {[%clk 0:02:42]}  Rc8 {[%clk 0:02:40]} 11. Nxf5 {[%clk 0:02:39]}  exf5 {[%clk 0:02:40]} 12. b4 {[%clk 0:02:36]}  Be7 {[%clk 0:02:32]} 13. O-O {[%clk 0:02:29]}  O-O {[%clk 0:02:32]} 14. f3 {[%clk 0:02:06]}  Rfe8 {[%clk 0:02:24]} 15. Kf2 {[%clk 0:02:05]}  Nf8 {[%clk 0:02:22]} 16. Na4 {[%clk 0:01:58]}  Bd8 {[%clk 0:02:19]} 17. Bh3 {[%clk 0:01:47]}  g6 {[%clk 0:02:19]} 18. b3 {[%clk 0:01:39]}  Ne6 {[%clk 0:02:16]} 19. e3 {[%clk 0:01:39]}  h5 {[%clk 0:02:14]} 20. Nb2 {[%clk 0:01:39]}  Bc7 {[%clk 0:02:12]} 21. Nd3 {[%clk 0:01:38]}  Nd7 {[%clk 0:02:10]} 22. Bd2 {[%clk 0:01:37]}  Re7 {[%clk 0:02:10]} 23. Rfe1 {[%clk 0:01:36]}  Rce8 {[%clk 0:02:10]} 24. Bg2 {[%clk 0:01:36]}  Kg7 {[%clk 0:02:05]} 25. Bc3 {[%clk 0:01:35]}  Nf6 {[%clk 0:02:01]} 26. Re2 {[%clk 0:01:34]}  h4 {[%clk 0:01:57]} 27. Rg1 {[%clk 0:00:37]}  hxg3+ {[%clk 0:01:56]} 28. hxg3 {[%clk 0:00:37]}  Rh8 {[%clk 0:01:47]} 29. Ne5 {[%clk 0:00:26]}  Nh5 {[%clk 0:01:39]} 30. Bf1 {[%clk 0:00:20]}  f6 {[%clk 0:01:18]} 31. Nd3 {[%clk 0:00:18]}  Kf7 {[%clk 0:01:17]} 32. Re1 {[%clk 0:00:14]}  Ng5 {[%clk 0:01:15]} 33. Nf4 {[%clk 0:00:11]}  Ng7 {[%clk 0:00:54]} 34. Kg2 {[%clk 0:00:08]}  Ree8 {[%clk 0:00:49]} 35. Bd3 {[%clk 0:00:08]}  Rh6 {[%clk 0:00:32]} 36. Bd2 {[%clk 0:00:08]}  Reh8 {[%clk 0:00:32]} 37. Kf2 {[%clk 0:00:06]}  Rh2+ {[%clk 0:00:32]} 38. Rg2 {[%clk 0:00:06]}  Rxg2+ {[%clk 0:00:26]} 39. Kxg2 {[%clk 0:00:06]}  Rh2+ {[%clk 0:00:23]} 40. Kxh2 {[%clk 0:00:05]}  Nxf3+ {[%clk 0:00:24]} 41. Kg2 {[%clk 0:00:05]}  Nxd2 {[%clk 0:00:25]} 42. Rh1 {[%clk 0:00:05]}  g5 {[%clk 0:00:19]} 43. Ne2 {[%clk 0:00:05]}  Kg8 {[%clk 0:00:13]} 44. Rd1 {[%clk 0:00:05]}  Ne4 {[%clk 0:00:13]} 45. Bxe4 {[%clk 0:00:05]}  fxe4 {[%clk 0:00:13]} 46. g4 {[%clk 0:00:05]}  Kf7 {[%clk 0:00:13]} 47. Ng3 {[%clk 0:00:06]}  Kg6 {[%clk 0:00:14]} 48. Rf1 {[%clk 0:00:06]}  Bxg3 {[%clk 0:00:13]} 49. Kxg3 {[%clk 0:00:06]}  f5 {[%clk 0:00:13]} 50. gxf5+ {[%clk 0:00:04]}  Nxf5+ {[%clk 0:00:14]} 51. Kf2 {[%clk 0:00:05]}  g4 {[%clk 0:00:15]} 52. Rh1 {[%clk 0:00:04]}  Nh6 {[%clk 0:00:14]} 53. Kg3 {[%clk 0:00:04]}  Kg5 {[%clk 0:00:15]} 54. Rxh6 {[%clk 0:00:04]}  Kxh6 {[%clk 0:00:15]} 55. Kxg4 {[%clk 0:00:04]}  Kg6 {[%clk 0:00:15]} 56. Kf4 {[%clk 0:00:05]}  Kf6 {[%clk 0:00:16]} 57. Kg4 {[%clk 0:00:05]}  Kg6 {[%clk 0:00:13]} 58. Kf4 {[%clk 0:00:05]}  Kf6 {[%clk 0:00:14]} 59. Kg4 {[%clk 0:00:05]}  Kg6 {[%clk 0:00:04]} 1/2-1/2


[Site "https://www.chess.com"]

[Event "Early Titled Tuesday Blitz | February 8 2022"]
[White "Kosteniuk, Alexandra"]
[Black "Jakubowski, Krzysztof"]
[WhiteFideId "4128125"]
[BlackFideId "1112848"]
[WhiteElo "2469"]
[BlackElo "2365"]
[Result "1-0"]
[Round "06"]
[TimeControl "180+1"]
[Date "2022.02.08"]
[WhiteClock "0:00:42"]
[BlackClock "0:00:03"]

1. e4 {[%clk 0:02:57]}  c5 {[%clk 0:02:56]} 2. c3 {[%clk 0:02:57]}  Nf6 {[%clk 0:02:53]} 3. e5 {[%clk 0:02:57]}  Nd5 {[%clk 0:02:53]} 4. Nf3 {[%clk 0:02:58]}  Nc6 {[%clk 0:02:51]} 5. d4 {[%clk 0:02:58]}  cxd4 {[%clk 0:02:51]} 6. cxd4 {[%clk 0:02:59]}  e6 {[%clk 0:02:49]} 7. Bc4 {[%clk 0:02:57]}  d6 {[%clk 0:02:38]} 8. O-O {[%clk 0:02:53]}  Nb6 {[%clk 0:02:34]} 9. Bb5 {[%clk 0:02:51]}  Bd7 {[%clk 0:02:28]} 10. Qe2 {[%clk 0:02:45]}  a6 {[%clk 0:02:20]} 11. Bd3 {[%clk 0:02:36]}  Nb4 {[%clk 0:02:11]} 12. Nc3 {[%clk 0:02:33]}  Nxd3 {[%clk 0:02:05]} 13. Qxd3 {[%clk 0:02:33]}  d5 {[%clk 0:02:04]} 14. Bg5 {[%clk 0:02:29]}  Be7 {[%clk 0:01:59]} 15. h4 {[%clk 0:02:22]}  h6 {[%clk 0:01:55]} 16. Bxe7 {[%clk 0:02:22]}  Qxe7 {[%clk 0:01:56]} 17. Rac1 {[%clk 0:02:22]}  Rc8 {[%clk 0:01:53]} 18. Nd2 {[%clk 0:02:21]}  Qxh4 {[%clk 0:01:45]} 19. g3 {[%clk 0:02:20]}  Qe7 {[%clk 0:01:38]} 20. Kg2 {[%clk 0:02:20]}  Qb4 {[%clk 0:01:15]} 21. b3 {[%clk 0:02:11]}  Rc6 {[%clk 0:01:08]} 22. Rc2 {[%clk 0:01:53]}  O-O {[%clk 0:01:04]} 23. Rfc1 {[%clk 0:01:41]}  Rfc8 {[%clk 0:01:03]} 24. g4 {[%clk 0:01:37]}  R8c7 {[%clk 0:00:59]} 25. Ndb1 {[%clk 0:01:31]}  Nc8 {[%clk 0:00:55]} 26. Rh1 {[%clk 0:01:30]}  Ne7 {[%clk 0:00:53]} 27. Kg3 {[%clk 0:01:18]}  Be8 {[%clk 0:00:37]} 28. f4 {[%clk 0:01:14]}  f5 {[%clk 0:00:25]} 29. exf6 {[%clk 0:01:09]}  Bg6 {[%clk 0:00:15]} 30. fxe7 {[%clk 0:01:07]}  Bxd3 {[%clk 0:00:15]} 31. e8=Q+ {[%clk 0:01:07]}  Qf8 {[%clk 0:00:14]} 32. Qxf8+ {[%clk 0:00:57]}  Kxf8 {[%clk 0:00:15]} 33. Rf2 {[%clk 0:00:45]}  Bh7 {[%clk 0:00:03]} 34. f5 {[%clk 0:00:42]} 1-0


[Site "https://www.chess.com"]

[Event "Early Titled Tuesday Blitz | February 8 2022"]
[White "Kostiukov, Alexandr"]
[Black "Dzhaparov, Medet"]
[WhiteFideId "14108100"]
[BlackFideId "13803689"]
[WhiteElo "2202"]
[BlackElo "1702"]
[Result "1/2-1/2"]
[Round "06"]
[TimeControl "180+1"]
[Date "2022.02.08"]
[WhiteClock "0:01:06"]
[BlackClock "0:01:29"]

1. g3 {[%clk 0:02:56]}  Nf6 {[%clk 0:02:59]} 2. Bg2 {[%clk 0:02:56]}  d5 {[%clk 0:02:58]} 3. d3 {[%clk 0:02:56]}  e6 {[%clk 0:02:55]} 4. e4 {[%clk 0:02:56]}  dxe4 {[%clk 0:02:55]} 5. dxe4 {[%clk 0:02:56]}  Qxd1+ {[%clk 0:02:55]} 6. Kxd1 {[%clk 0:02:57]}  Bc5 {[%clk 0:02:55]} 7. f3 {[%clk 0:02:57]}  Nc6 {[%clk 0:02:56]} 8. Nd2 {[%clk 0:02:58]}  Bd7 {[%clk 0:02:53]} 9. c3 {[%clk 0:02:58]}  b5 {[%clk 0:02:51]} 10. Nb3 {[%clk 0:02:41]}  Bb6 {[%clk 0:02:50]} 11. Ke2 {[%clk 0:02:41]}  h6 {[%clk 0:02:44]} 12. Be3 {[%clk 0:02:40]}  Bxe3 {[%clk 0:02:42]} 13. Kxe3 {[%clk 0:02:40]}  Ke7 {[%clk 0:02:42]} 14. Nh3 {[%clk 0:02:37]}  a5 {[%clk 0:02:40]} 15. Nf2 {[%clk 0:02:36]}  Na7 {[%clk 0:02:36]} 16. Nxa5 {[%clk 0:02:32]}  c5 {[%clk 0:02:34]} 17. Nb3 {[%clk 0:02:27]}  c4 {[%clk 0:02:33]} 18. Nd4 {[%clk 0:02:26]}  e5 {[%clk 0:02:28]} 19. Nc2 {[%clk 0:02:20]}  Nc8 {[%clk 0:02:26]} 20. Bh3 {[%clk 0:02:18]}  Bxh3 {[%clk 0:02:23]} 21. Nxh3 {[%clk 0:02:18]}  Nb6 {[%clk 0:02:23]} 22. Nb4 {[%clk 0:02:12]}  Na4 {[%clk 0:02:17]} 23. Rab1 {[%clk 0:02:09]}  Kd6 {[%clk 0:02:14]} 24. Rhd1+ {[%clk 0:02:08]}  Kc7 {[%clk 0:02:13]} 25. Nd5+ {[%clk 0:02:04]}  Nxd5+ {[%clk 0:02:12]} 26. Rxd5 {[%clk 0:02:04]}  f6 {[%clk 0:02:10]} 27. f4 {[%clk 0:01:58]}  exf4+ {[%clk 0:02:09]} 28. gxf4 {[%clk 0:01:53]}  Rhd8 {[%clk 0:02:07]} 29. Rxd8 {[%clk 0:01:47]}  Rxd8 {[%clk 0:02:08]} 30. Nf2 {[%clk 0:01:47]}  Kc6 {[%clk 0:02:06]} 31. h4 {[%clk 0:01:44]}  h5 {[%clk 0:01:49]} 32. Rg1 {[%clk 0:01:31]}  Rd7 {[%clk 0:01:45]} 33. Nd1 {[%clk 0:01:31]}  Nc5 {[%clk 0:01:40]} 34. Nf2 {[%clk 0:01:27]}  Na4 {[%clk 0:01:36]} 35. Nd1 {[%clk 0:01:16]}  Nc5 {[%clk 0:01:30]} 36. Nf2 {[%clk 0:01:06]}  Na4 {[%clk 0:01:29]} 1/2-1/2


[Site "https://www.chess.com"]

[Event "Early Titled Tuesday Blitz | February 8 2022"]
[White "Kovanova, Baira"]
[Black "Warchol, Kamil"]
[WhiteFideId "4164083"]
[BlackFideId "21858241"]
[WhiteElo "2190"]
[BlackElo "1905"]
[Result "1-0"]
[Round "06"]
[TimeControl "180+1"]
[Date "2022.02.08"]
[WhiteClock "0:00:49"]
[BlackClock "0:00:04"]

1. e4 {[%clk 0:03:00]}  c5 {[%clk 0:02:53]} 2. Nf3 {[%clk 0:02:59]}  e6 {[%clk 0:02:52]} 3. d3 {[%clk 0:02:59]}  Nc6 {[%clk 0:02:50]} 4. g3 {[%clk 0:02:58]}  g6 {[%clk 0:02:51]} 5. Bg2 {[%clk 0:02:58]}  Bg7 {[%clk 0:02:52]} 6. O-O {[%clk 0:02:58]}  Nge7 {[%clk 0:02:52]} 7. h4 {[%clk 0:02:51]}  d6 {[%clk 0:02:52]} 8. h5 {[%clk 0:02:44]}  O-O {[%clk 0:02:50]} 9. c3 {[%clk 0:02:36]}  d5 {[%clk 0:02:46]} 10. Qe2 {[%clk 0:02:33]}  b6 {[%clk 0:02:44]} 11. e5 {[%clk 0:02:31]}  Ba6 {[%clk 0:02:41]} 12. Re1 {[%clk 0:02:27]}  d4 {[%clk 0:02:26]} 13. c4 {[%clk 0:02:26]}  b5 {[%clk 0:02:26]} 14. b3 {[%clk 0:02:25]}  Rc8 {[%clk 0:02:21]} 15. Bf4 {[%clk 0:02:24]}  Nf5 {[%clk 0:02:14]} 16. Nbd2 {[%clk 0:02:22]}  h6 {[%clk 0:02:05]} 17. Ne4 {[%clk 0:02:21]}  g5 {[%clk 0:01:55]} 18. Nfxg5 {[%clk 0:02:17]}  hxg5 {[%clk 0:01:48]} 19. Bxg5 {[%clk 0:02:17]}  Qc7 {[%clk 0:01:40]} 20. Nf6+ {[%clk 0:02:17]}  Kh8 {[%clk 0:01:39]} 21. h6 {[%clk 0:02:14]}  Bxf6 {[%clk 0:01:27]} 22. Bxf6+ {[%clk 0:02:14]}  Kh7 {[%clk 0:01:26]} 23. g4 {[%clk 0:02:06]}  Nfe7 {[%clk 0:01:06]} 24. f4 {[%clk 0:01:49]}  Bb7 {[%clk 0:01:02]} 25. Be4+ {[%clk 0:01:44]}  Ng6 {[%clk 0:00:58]} 26. Bg7 {[%clk 0:01:37]}  Rfe8 {[%clk 0:00:50]} 27. Qf3 {[%clk 0:01:29]}  Ba8 {[%clk 0:00:45]} 28. cxb5 {[%clk 0:01:18]}  Ne7 {[%clk 0:00:43]} 29. f5 {[%clk 0:01:18]}  Bxe4 {[%clk 0:00:41]} 30. Qxe4 {[%clk 0:01:17]}  exf5 {[%clk 0:00:22]} 31. gxf5 {[%clk 0:01:16]}  Nxf5 {[%clk 0:00:23]} 32. Qxf5 {[%clk 0:01:16]}  Re6 {[%clk 0:00:24]} 33. Re2 {[%clk 0:01:08]}  Rce8 {[%clk 0:00:23]} 34. Rf1 {[%clk 0:01:07]}  R6e7 {[%clk 0:00:20]} 35. Rg2 {[%clk 0:01:05]}  Qb7 {[%clk 0:00:16]} 36. e6 {[%clk 0:01:00]}  Rxe6 {[%clk 0:00:15]} 37. Qxf7 {[%clk 0:01:00]}  Qd5 {[%clk 0:00:14]} 38. Bf6+ {[%clk 0:00:54]}  Kxh6 {[%clk 0:00:04]} 39. Qxg6# {[%clk 0:00:49]} 1-0


[Site "https://www.chess.com"]